bitfinex-derivatives/quotes_SOLF0:USTF0_20250730
["timestamp","ask_amount","ask_price","bid_price","bid_amount"]
[1753908743542,5.689,175.83,175.82,4.0566377]
[1753908743740,8.749,175.83,175.82,108.8366377]
[1753908744143,8.749,175.83,175.82,112.0666377]
[1753908744742,3.06,175.83,175.82,112.0666377]
[1753908745044,3.06,175.86,175.83,3.23]
[1753908745240,3.06,175.85,175.82,112.0666377]
[1753908745645,3.06,175.84,175.83,3.23]
[1753908746245,3.06,175.84,175.82,108.8366377]
[1753908746445,3.06,175.83,175.82,112.0666377]
[1753908746644,8.7484,175.85,175.82,112.0666377]
[1753908746843,5.6884,175.85,175.82,108.8366377]
[1753908747137,3.06,175.84,175.83,3.23]
[1753908747645,3.06,175.83,175.82,112.0666377]
[1753908748745,8.9884,175.85,175.83,3.28]
[1753908748946,3.3,175.85,175.83,3.28]
[1753908749539,3.3,175.85,175.84,7.3366377]
[1753908750140,3.3,175.91,175.84,7.3366377]
[1753908750346,3.3,175.91,175.88,3.28]
[1753908750548,3.3,175.91,175.88,108.04]
[1753908750752,5.6869,175.9,175.88,104.76]
[1753908751045,3.3,175.89,175.88,104.76]
[1753908751238,8.9871,175.89,175.88,104.76]
[1753908752050,3.3,175.89,175.88,104.76]
[1753908753251,3.3,175.89,175.88,108.8166377]
[1753908753452,3.3,175.91,175.88,112.0966377]
[1753908753748,3.3,175.9,175.89,3.28]
[1753908754146,3.3,175.9,175.88,108.8166377]
[1753908754343,3.3,175.89,175.88,112.0966377]
[1753908755354,3.3,175.89,175.88,108.8166377]
[1753908755845,3.3,175.89,175.88,112.0966377]
[1753908756351,5.6865,175.91,175.88,108.04]
[1753908756547,3.3,175.89,175.88,108.04]
[1753908757748,3.3,175.89,175.88,112.0966377]
[1753908759652,3.3,175.89,175.88,108.7966377]
[1753908761454,8.9871,175.89,175.88,108.7966377]
[1753908761654,8.9871,175.89,175.88,112.0766377]
[1753908761853,8.9871,175.89,175.88,108.7966377]
[1753908765359,8.9871,175.89,175.88,112.0766377]
[1753908765663,3.3,175.89,175.88,112.0766377]
[1753908766960,3.3,175.9,175.89,3.28]
[1753908767761,5.6865,175.91,175.88,117.7640377]
[1753908767962,5.6865,175.91,175.89,3.28]
[1753908768268,5.6865,175.91,175.9,104.72]
[1753908768460,5.6861,175.92,175.9,104.72]
[1753908768662,3.3,175.91,175.9,104.72]
[1753908768858,3.3,175.91,175.88,4.0566377]
[1753908769162,3.3,175.91,175.9,104.72]
[1753908769365,3.3,175.94,175.89,104.72]
[1753908769866,5.6866,175.91,175.89,104.72]
[1753908770163,3.3,175.9,175.89,104.72]
[1753908770964,8.9867,175.9,175.89,104.72]
[1753908773065,3.3,175.9,175.89,104.72]
[1753908773368,3.3,175.9,175.89,108.0]
[1753908773665,8.9867,175.9,175.89,107.98]
[1753908774067,3.3,175.9,175.89,107.98]
[1753908774270,3.3,175.97,175.89,107.98]
[1753908774562,3.3,175.98,175.93,3.28]
[1753908774770,3.3,175.96,175.92,104.7]
[1753908775265,5.6858,175.93,175.92,104.7]
[1753908775467,8.9858,175.93,175.92,104.7]
[1753908777463,3.3,175.93,175.92,104.7]
[1753908777662,8.9854,175.95,175.93,3.28]
[1753908777868,8.9854,175.95,175.94,3.28]
[1753908778062,5.6854,175.95,175.92,108.7566377]
[1753908778366,3.3,175.94,175.93,3.28]
[1753908778869,3.3,175.94,175.92,108.7566377]
[1753908778870,3.11,175.95,175.94,3.04]
[1753908779169,3.11,175.95,175.94,7.0966377]
[1753908780876,3.11,175.95,175.94,4.0566377]
[1753908781575,8.7951,175.95,175.94,4.0566377]
[1753908781964,4.0566377,176.02,175.92,111.7966377]
[1753908782170,8.7956,175.94,175.92,111.7966377]
[1753908782372,3.11,175.93,175.92,111.7966377]
[1753908782969,8.7958,175.93,175.92,4.0566377]
[1753908783173,4.0566377,175.98,175.91,104.68]
[1753908783370,4.18300351,175.97,175.91,104.68]
[1753908783570,5.686,175.93,175.91,104.68]
[1753908783769,3.11,175.92,175.91,104.68]
[1753908784570,4.70301662,176.03,175.92,3.04]
[1753908784771,4.1864484,176.02,176.01,4.0566377]
[1753908785074,4.70301662,176.06,176.01,111.7566377]
[1753908785382,3.11,176.06,176.05,7.0966377]
[1753908785576,3.11,176.08,176.06,3.04]
[1753908785776,3.11,176.08,176.07,4.0566377]
[1753908785967,8.7909,176.08,176.05,108.7166377]
[1753908786174,3.11,176.13,176.05,108.7166377]
[1753908786371,3.11,176.13,176.07,4.0566377]
[1753908786571,3.11,176.17,176.1,7.0966377]
[1753908786769,6.29375566,176.22,176.1,7.0966377]
[1753908786770,3.11,176.2,176.16,4.0566377]
[1753908786970,8.7871,176.2,176.17,3.04]
[1753908787280,8.7871,176.2,176.16,4.0566377]
[1753908787281,4.70301662,176.24,176.18,4.0566377]
[1753908787476,5.6768,176.21,176.18,4.0566377]
[1753908787678,4.0566377,176.25,176.18,4.0566377]
[1753908787871,3.11,176.24,176.18,4.0566377]
[1753908788067,3.11,176.24,176.19,4.0566377]
[1753908788267,3.11,176.22,176.16,104.64]
[1753908788572,5.6774,176.19,176.16,104.64]
[1753908788877,3.11,176.17,176.16,104.64]
[1753908789571,4.70301662,176.26,176.16,104.64]
[1753908789572,4.0566377,176.25,176.16,104.64]
[1753908789870,3.11,176.27,176.2,7.0966377]
[1753908790072,3.11,176.27,176.22,7.0966377]
[1753908790281,3.11,176.24,176.22,7.0966377]
[1753908790869,3.11,176.26,176.22,4.0566377]
[1753908791072,3.11,176.26,176.24,3.04]
[1753908791273,3.11,176.26,176.24,7.0966377]
[1753908792268,3.11,176.31,176.24,4.0566377]
[1753908792472,3.11,176.31,176.22,7.0966377]
[1753908792980,3.11,176.3,176.22,7.0966377]
[1753908793196,5.6755,176.25,176.22,7.0966377]
[1753908793380,8.7855,176.25,176.23,3.04]
[1753908793579,3.11,176.24,176.22,4.0566377]
[1753908793776,5.6767,176.22,176.2,7.0966377]
[1753908794079,8.7867,176.22,176.2,7.0966377]
[1753908794577,3.11,176.2,176.18,111.6566377]
[1753908794777,3.11,176.2,176.18,108.6166377]
[1753908794983,3.11,176.22,176.19,3.04]
[1753908795277,5.6769,176.21,176.2,3.04]
[1753908795478,5.6769,176.21,176.18,108.6166377]
[1753908795479,3.11,176.26,176.18,4.0566377]
[1753908795676,4.0566377,176.25,176.16,7.0966377]
[1753908795984,3.11,176.24,176.17,104.54]
[1753908796479,5.6775,176.19,176.17,104.54]
[1753908796676,8.7875,176.19,176.17,107.58]
[1753908798779,3.11,176.19,176.17,107.58]
[1753908799284,3.11,176.18,176.16,4.0566377]
[1753908799487,3.11,176.18,176.16,111.6166377]
[1753908800887,3.11,176.22,176.18,3.04]
[1753908801182,3.11,176.26,176.19,3.04]
[1753908801383,8.7862,176.23,176.19,3.04]
[1753908802083,3.11,176.23,176.19,3.04]
[1753908802382,8.7859,176.24,176.19,3.04]
[1753908802782,5.6754,176.26,176.23,4.0566377]
[1753908802985,5.6754,176.26,176.24,3.04]
[1753908803287,5.6754,176.26,176.25,3.04]
[1753908803475,5.6754,176.26,176.23,7.0966377]
[1753908803676,3.11,176.25,176.23,7.0966377]
[1753908803882,3.11,176.3,176.23,4.0566377]
[1753908804185,3.11,176.29,176.23,4.0566377]
[1753908804385,5.6754,176.26,176.23,4.0566377]
[1753908804588,3.11,176.25,176.23,7.0966377]
[1753908804780,3.11,176.24,176.23,7.0966377]
[1753908805487,3.11,176.24,176.22,104.5]
[1753908805676,3.11,176.24,176.22,107.54]
[1753908805880,3.11,176.24,176.22,3.04]
[1753908806082,3.11,176.24,176.22,107.54]
[1753908806583,3.11,176.24,176.23,3.04]
[1753908807089,3.11,176.25,176.23,3.04]
[1753908808087,3.11,176.25,176.24,3.04]
[1753908808488,3.11,176.26,176.25,3.04]
[1753908808685,3.24,176.28,176.26,3.32]
[1753908808886,3.24,176.27,176.26,3.32]
[1753908809494,3.24,176.27,176.23,4.0566377]
[1753908809685,4.0566377,176.32,176.24,3.32]
[1753908809880,3.24,176.25,176.24,3.32]
[1753908811187,3.24,176.25,176.23,4.0566377]
[1753908811385,3.24,176.27,176.19,4.0566377]
[1753908811584,4.0566377,176.26,176.18,3.32]
[1753908811789,3.24,176.21,176.14,3.32]
[1753908812085,3.24,176.19,176.13,104.48]
[1753908812486,104.48,176.3,176.16,7.3766377]
[1753908812487,4.0566377,176.24,176.16,7.3766377]
[1753908812686,3.24,176.2,176.17,3.32]
[1753908812893,3.24,176.22,176.17,3.32]
[1753908813192,3.24,176.22,176.19,3.32]
[1753908813393,3.24,176.21,176.14,3.32]
[1753908813585,3.24,176.2,176.16,7.3766377]
[1753908813784,3.24,176.18,176.16,7.3766377]
[1753908813987,3.24,176.18,176.17,3.32]
[1753908814295,3.24,176.2,176.17,3.32]
[1753908814487,3.24,176.2,176.16,4.0566377]
[1753908814488,4.0566377,176.31,176.19,3.32]
[1753908814783,3.24,176.28,176.21,3.32]
[1753908815391,5.6752,176.26,176.21,5.6766]
[1753908815587,3.24,176.24,176.22,3.32]
[1753908815790,4.0566377,176.31,176.23,3.32]
[1753908815993,3.24,176.26,176.24,3.32]
[1753908816189,3.24,176.26,176.24,7.3766377]
[1753908816886,5.6748,176.28,176.24,7.3766377]
[1753908817193,3.24,176.26,176.24,13.0524377]
[1753908817390,3.24,176.28,176.25,3.32]
[1753908817587,3.24,176.27,176.26,3.32]
[1753908817788,4.0566377,176.34,176.26,3.32]
[1753908818096,3.24,176.28,176.26,3.32]
[1753908819694,3.24,176.27,176.24,9.7323377]
[1753908819895,3.24,176.27,176.26,3.32]
[1753908820090,3.24,176.29,176.26,4.0566377]
[1753908820401,3.24,176.28,176.27,3.32]
[1753908820785,3.24,176.27,176.24,3.32]
[1753908820991,3.24,176.26,176.19,4.0566377]
[1753908821192,3.24,176.25,176.19,4.0566377]
[1753908821391,8.9157,176.25,176.2,9.7335377]
[1753908821699,3.24,176.23,176.2,9.7335377]
[1753908821896,3.24,176.23,176.21,3.32]
[1753908823398,3.24,176.23,176.21,8.9967]
[1753908824100,3.24,176.23,176.21,3.32]
[1753908824794,3.24,176.23,176.2,6.61380187]
[1753908825094,3.24,176.25,176.23,3.32]
[1753908825703,6.61380187,176.32,176.2,3.32]
[1753908825898,6.61380187,176.32,176.21,3.32]
[1753908825899,3.24,176.23,176.21,3.32]
[1753908826106,3.24,176.23,176.2,6.61380187]
[1753908826298,3.24,176.23,176.22,3.32]
[1753908826607,6.61380187,176.28,176.19,3.32]
[1753908826905,3.24,176.27,176.19,3.32]
[1753908827102,3.24,176.27,176.18,6.61380187]
[1753908827305,3.24,176.27,176.17,3.32]
[1753908827506,3.24,176.25,176.17,3.32]
[1753908827706,5.677,176.21,176.17,3.32]
[1753908827915,3.24,176.19,176.17,3.32]
[1753908828305,3.24,176.19,176.17,5.678]
[1753908828509,3.24,176.27,176.17,3.32]
[1753908828707,3.24,176.25,176.2,3.32]
[1753908828908,5.676,176.24,176.21,3.32]
[1753908829110,3.24,176.23,176.21,3.32]
[1753908829316,8.916,176.24,176.19,6.61380187]
[1753908829505,8.9162,176.23,176.2,3.32]
[1753908829702,3.24,176.22,176.2,3.32]
[1753908829910,3.24,176.21,176.2,3.32]
[1753908830110,3.24,176.22,176.2,3.32]
[1753908830307,3.24,176.25,176.21,3.32]
[1753908830506,3.24,176.23,176.2,3.32]
[1753908830707,3.24,176.27,176.18,3.32]
[1753908830909,3.24,176.21,176.17,6.61380187]
[1753908831109,3.24,176.21,176.19,3.32]
[1753908831913,3.24,176.2,176.19,3.32]
[1753908832710,3.24,176.22,176.19,3.32]
[1753908832916,5.6764,176.23,176.19,3.32]
[1753908832917,3.24,176.21,176.19,3.32]
[1753908833117,5.6764,176.23,176.19,3.32]
[1753908833319,3.24,176.22,176.19,3.32]
[1753908833513,3.24,176.21,176.19,3.32]
[1753908833914,3.24,176.21,176.2,3.32]
[1753908834819,3.24,176.23,176.2,3.32]
[1753908835008,3.24,176.22,176.2,3.32]
[1753908835207,4.66340823,176.27,176.17,9.93380187]
[1753908835408,3.24,176.18,176.17,9.93380187]
[1753908835619,3.24,176.17,176.15,3.32]
[1753908835918,3.24,176.17,176.16,3.32]
[1753908836312,3.24,176.16,176.14,9.93380187]
[1753908836515,3.24,176.16,176.14,3.32]
[1753908836912,3.24,176.15,176.14,3.32]
[1753908837515,3.24,176.15,176.14,8.999]
[1753908837812,3.24,176.22,176.14,8.999]
[1753908838117,3.24,176.2,176.14,8.999]
[1753908838413,3.24,176.18,176.15,8.9985]
[1753908838718,3.18,176.17,176.15,8.9985]
[1753908838920,3.18,176.17,176.15,3.32]
[1753908839518,3.18,176.25,176.17,3.19]
[1753908839715,3.18,176.24,176.21,6.61380187]
[1753908839909,3.18,176.26,176.22,3.19]
[1753908840115,3.18,176.25,176.23,3.19]
[1753908840314,3.18,176.24,176.23,3.19]
[1753908840616,3.18,176.26,176.21,6.61380187]
[1753908840823,3.18,176.26,176.24,3.19]
[1753908841021,3.18,176.25,176.24,3.19]
[1753908842120,3.18,176.25,176.23,6.61380187]
[1753908842316,11.2772101,176.33,176.23,9.80380187]
[1753908842513,3.18,176.31,176.23,6.61380187]
[1753908842716,4.06932558,176.3,176.23,6.61380187]
[1753908842915,3.18,176.26,176.21,9.80380187]
[1753908843225,3.18,176.26,176.19,9.80380187]
[1753908844320,5.6762,176.23,176.19,12.29100187]
[1753908844522,3.18,176.21,176.19,15.48100187]
[1753908844912,3.18,176.2,176.19,6.61380187]
[1753908845625,3.18,176.2,176.19,9.80380187]
[1753908846219,3.18,176.2,176.19,3.19]
[1753908847224,3.18,176.19,176.18,6.61380187]
[1753908847624,3.18,176.19,176.17,3.19]
[1753908848022,3.18,176.2,176.17,3.19]
[1753908848824,8.8571,176.2,176.17,3.19]
[1753908849029,3.18,176.19,176.17,3.19]
[1753908849426,3.18,176.18,176.17,3.19]
[1753908850225,3.18,176.18,176.14,9.80380187]
[1753908850627,3.18,176.18,176.15,3.19]
[1753908850822,8.8578,176.18,176.15,3.19]
[1753908851022,3.18,176.17,176.15,3.19]
[1753908851427,3.18,176.24,176.14,15.48280187]
[1753908851628,4.07236684,176.23,176.14,15.48280187]
[1753908851829,3.18,176.22,176.14,15.48280187]
[1753908852030,5.6772,176.2,176.14,15.48280187]
[1753908852233,3.18,176.19,176.15,5.6786]
[1753908852529,3.18,176.19,176.15,8.8686]
[1753908853030,3.18,176.21,176.14,6.61380187]
[1753908853226,3.18,176.21,176.15,3.19]
[1753908853620,3.18,176.19,176.16,3.19]
[1753908853823,3.18,176.18,176.16,3.19]
[1753908854329,3.18,176.17,176.16,3.19]
[1753908854725,3.18,176.17,176.16,7.25075777]
[1753908858029,4.66340823,176.28,176.16,7.25075777]
[1753908858030,8.8565,176.22,176.16,4.06075777]
[1753908858231,3.18,176.21,176.2,4.06075777]
[1753908858433,3.18,176.21,176.2,7.25075777]
[1753908861335,3.18,176.21,176.2,4.06075777]
[1753908862929,3.18,176.22,176.2,7.25075777]
[1753908863133,3.18,176.21,176.2,7.25075777]
[1753908866058,3.18,176.21,176.2,12.92785777]
[1753908866454,3.18,176.21,176.2,7.25075777]
[1753908867251,3.18,176.28,176.21,3.19]
[1753908867455,4.0696383,176.27,176.22,4.06075777]
[1753908867656,3.18,176.29,176.22,4.06075777]
[1753908867859,5.6758,176.25,176.22,4.06075777]
[1753908868155,3.18,176.24,176.22,4.06075777]
[1753908868858,3.18,176.24,176.2,4.06075777]
[1753908869456,5.6766,176.22,176.2,4.06075777]
[1753908869656,3.0,176.21,176.2,4.06075777]
[1753908869856,3.0,176.21,176.16,4.06075777]
[1753908870052,5.6778,176.18,176.16,4.06075777]
[1753908870265,3.0,176.17,176.16,4.06075777]
[1753908871355,4.06075777,176.24,176.16,7.31075777]
[1753908871558,3.0,176.23,176.16,7.31075777]
[1753908871759,3.0,176.23,176.16,4.06075777]
[1753908872157,3.0,176.18,176.16,4.06075777]
[1753908872360,3.0,176.17,176.16,7.31075777]
[1753908872652,3.0,176.17,176.16,4.06075777]
[1753908873657,8.678,176.17,176.16,4.06075777]
[1753908873858,8.678,176.17,176.14,7.31075777]
[1753908874058,4.06075777,176.22,176.12,111.81075777]
[1753908874059,3.0,176.16,176.12,111.81075777]
[1753908874255,3.0,176.14,176.12,111.81075777]
[1753908874455,3.0,176.13,176.12,111.81075777]
[1753908875262,3.0,176.15,176.12,117.49035777]
[1753908875562,3.0,176.14,176.13,3.25]
[1753908876158,3.0,176.14,176.12,108.56075777]
[1753908876760,3.0,176.14,176.12,111.81075777]
[1753908877161,11.3513,176.25,176.12,108.56075777]
[1753908877362,3.0,176.23,176.17,4.06075777]
[1753908877557,3.0,176.23,176.19,7.31075777]
[1753908877957,3.0,176.21,176.19,7.31075777]
[1753908878266,3.0,176.2,176.19,7.31075777]
[1753908879765,3.0,176.2,176.19,4.06075777]
[1753908881265,3.0,176.2,176.17,4.06075777]
[1753908881763,3.0,176.17,176.15,7.31075777]
[1753908881963,3.0,176.16,176.15,4.06075777]
[1753908882266,3.0,176.16,176.15,7.31075777]
[1753908883360,3.0,176.16,176.15,4.06075777]
[1753908883666,3.0,176.16,176.12,104.5]
[1753908883965,3.0,176.14,176.12,104.5]
[1753908884366,3.0,176.13,176.12,104.5]
[1753908885464,3.0,176.13,176.12,114.24045777]
[1753908885664,3.0,176.13,176.12,111.81075777]
[1753908886863,3.0,176.24,176.12,108.56075777]
[1753908887055,3.0,176.16,176.14,4.06075777]
[1753908887564,3.0,176.17,176.14,4.06075777]
[1753908887761,3.0,176.19,176.16,4.06075777]
[1753908888065,3.0,176.18,176.16,4.06075777]
[1753908888364,3.0,176.18,176.17,4.06075777]
[1753908888867,3.0,176.18,176.17,6.6160657]
[1753908890766,3.0,176.18,176.12,104.5]
[1753908890767,3.0,176.18,176.13,6.6160657]
[1753908892262,5.6784,176.16,176.13,6.6160657]
[1753908892463,3.0,176.22,176.14,3.25]
[1753908892862,6.6160657,176.24,176.14,3.25]
[1753908893063,7.03820569,176.23,176.14,3.25]
[1753908893267,6.6160657,176.24,176.14,3.25]
[1753908893268,3.0,176.21,176.14,3.25]
[1753908893857,3.0,176.18,176.15,8.9284]
[1753908894270,3.0,176.18,176.13,6.6160657]
[1753908894569,3.0,176.17,176.14,5.6789]
[1753908894768,3.0,176.17,176.13,9.8660657]
[1753908895269,8.6783,176.17,176.13,15.5453657]
[1753908895563,5.6783,176.17,176.13,15.5453657]
[1753908895865,3.0,176.15,176.13,15.5453657]
[1753908896663,8.6787,176.15,176.13,9.8660657]
[1753908896865,3.0,176.14,176.13,6.6160657]
[1753908898365,3.0,176.14,176.13,9.8660657]
[1753908899163,3.0,176.14,176.13,15.5453657]
[1753908899470,3.0,176.14,176.13,9.8660657]
[1753908900663,5.6784,176.16,176.13,9.8660657]
[1753908900864,3.21,176.21,176.15,6.6160657]
[1753908901062,3.21,176.21,176.15,9.9060657]
[1753908901467,3.21,176.21,176.15,6.6160657]
[1753908901769,3.21,176.19,176.11,6.6160657]
[1753908901972,3.21,176.19,176.12,104.52]
[1753908902370,3.21,176.16,176.12,113.4893]
[1753908902771,3.21,176.16,176.13,5.679]
[1753908904372,3.21,176.15,176.13,5.679]
[1753908904572,3.21,176.14,176.13,5.679]
[1753908904774,3.21,176.14,176.13,8.969]
[1753908904973,8.8884,176.16,176.14,3.29]
[1753908905270,3.21,176.15,176.14,3.29]
[1753908905469,5.6784,176.16,176.13,5.679]
[1753908905670,3.21,176.14,176.13,8.969]
[1753908905870,3.21,176.21,176.13,3.29]
[1753908906174,3.21,176.19,176.12,113.4895]
[1753908906571,5.6786,176.16,176.12,113.4895]
[1753908906764,3.21,176.14,176.12,113.4895]
[1753908906968,3.21,176.13,176.12,113.4895]
[1753908907376,3.21,176.13,176.12,107.81]
[1753908907971,8.8893,176.13,176.12,104.52]
[1753908908273,3.21,176.13,176.12,104.52]
[1753908908671,3.21,176.13,176.12,107.81]
[1753908909176,3.21,176.21,176.13,3.29]
[1753908909373,3.21,176.21,176.16,3.29]
[1753908909575,3.21,176.21,176.15,6.6160657]
[1753908910074,5.6782,176.17,176.15,6.6160657]
[1753908910279,3.21,176.16,176.15,6.6160657]
[1753908910675,5.6782,176.17,176.15,6.6160657]
[1753908910871,8.8882,176.17,176.16,4.06068106]
[1753908912880,3.21,176.21,176.18,3.29]
[1753908913284,3.21,176.21,176.17,3.29]
[1753908913477,3.21,176.19,176.17,3.29]
[1753908913678,3.21,176.18,176.17,3.29]
[1753908913982,3.21,176.17,176.16,7.35068106]
[1753908915484,3.21,176.17,176.16,4.06068106]
[1753908917084,3.21,176.17,176.16,7.35068106]
[1753908917578,3.21,176.17,176.16,3.29]
[1753908917788,3.21,176.17,176.15,4.06068106]
[1753908917980,3.21,176.21,176.15,4.06068106]
[1753908918177,3.21,176.21,176.15,7.35068106]
[1753908919080,3.21,176.21,176.15,4.06068106]
[1753908919286,3.21,176.19,176.15,4.06068106]
[1753908919585,3.21,176.15,176.13,4.06068106]
[1753908921287,8.8887,176.15,176.13,4.06068106]
[1753908921486,3.21,176.14,176.13,4.06068106]
[1753908922077,3.21,176.14,176.12,104.52]
[1753908922689,3.21,176.13,176.12,104.52]
[1753908922990,3.21,176.13,176.12,107.81]
[1753908923680,3.21,176.13,176.12,113.4897]
[1753908923885,3.21,176.13,176.12,107.81]
[1753908925188,3.21,176.13,176.12,104.52]
[1753908925487,3.21,176.13,176.12,107.81]
[1753908925689,3.21,176.13,176.12,104.52]
[1753908926286,3.21,176.14,176.12,107.81]
[1753908926586,3.21,176.14,176.12,104.52]
[1753908926785,3.21,176.14,176.13,3.29]
[1753908926984,3.21,176.14,176.13,7.35068106]
[1753908927387,3.21,176.16,176.13,4.06068106]
[1753908927586,3.21,176.16,176.15,3.29]
[1753908928487,3.21,176.15,176.14,3.29]
[1753908928890,3.31,176.13,176.12,104.5]
[1753908929095,3.31,176.13,176.12,107.64]
[1753908931292,3.31,176.19,176.13,3.14]
[1753908931500,3.31,176.19,176.14,7.20068106]
[1753908931693,3.31,176.16,176.14,7.20068106]
[1753908931891,3.31,176.15,176.14,7.20068106]
[1753908932289,3.31,176.24,176.15,3.14]
[1753908932589,3.31,176.22,176.18,3.14]
[1753908932898,3.31,176.26,176.21,7.20068106]
[1753908933102,3.31,176.24,176.23,4.06068106]
[1753908933294,5.6752,176.26,176.23,7.20068106]
[1753908933600,3.31,176.24,176.23,7.20068106]
[1753908934191,3.31,176.24,176.23,4.06068106]
[1753908934794,3.31,176.24,176.22,104.5]
[1753908936004,4.06068106,176.25,176.18,104.5]
[1753908936303,3.31,176.24,176.18,104.5]
[1753908936503,5.6768,176.21,176.18,104.5]
[1753908936708,3.31,176.2,176.18,107.64]
[1753908937198,3.31,176.2,176.18,113.3176]
[1753908937406,3.31,176.2,176.19,3.14]
[1753908938505,3.31,176.2,176.18,104.5]
[1753908939203,3.31,176.19,176.18,104.5]
[1753908939402,4.06068106,176.27,176.17,4.06068106]
[1753908939702,3.31,176.17,176.16,104.48]
[1753908940301,8.9876,176.19,176.16,108.54068106]
[1753908940705,8.9876,176.19,176.17,3.14]
[1753908940906,3.31,176.17,176.16,108.54068106]
[1753908941411,3.31,176.17,176.16,104.48]
[1753908942002,3.31,176.17,176.14,7.20068106]
[1753908942003,5.6784,176.16,176.14,7.20068106]
[1753908942207,3.31,176.15,176.14,4.06068106]
[1753908942804,3.31,176.15,176.13,104.48]
[1753908943105,3.31,176.14,176.13,104.48]
[1753908943412,3.31,176.14,176.13,107.62]
[1753908945002,3.31,176.14,176.13,104.48]
[1753908945698,3.31,176.17,176.1,4.06068106]
[1753908945899,4.06068106,176.16,176.09,107.62]
[1753908946104,3.31,176.15,176.09,104.48]
[1753908946303,8.9903,176.1,176.09,104.48]
[1753908946714,3.31,176.1,176.09,104.48]
[1753908947514,3.31,176.1,176.09,107.62]
[1753908947904,8.9899,176.12,176.1,3.14]
[1753908948808,5.6799,176.12,176.1,3.14]
[1753908949012,3.31,176.11,176.1,3.14]
[1753908950510,5.6793,176.13,176.11,3.14]
[1753908950511,8.9893,176.13,176.11,3.14]
[1753908951012,3.31,176.13,176.11,3.14]
[1753908951308,3.31,176.13,176.12,3.14]
[1753908951509,4.06068106,176.21,176.13,3.14]
[1753908951812,3.31,176.2,176.14,7.20068106]
[1753908952012,3.31,176.17,176.16,3.14]
[1753908952413,11.3486,176.28,176.16,3.14]
[1753908952414,3.31,176.21,176.16,4.06068106]
[1753908952613,3.31,176.21,176.17,3.14]
[1753908952810,11.3486,176.28,176.18,3.14]
[1753908953006,3.31,176.19,176.18,3.14]
[1753908953703,4.70957564,176.3,176.18,7.20068106]
[1753908953910,3.31,176.21,176.2,7.20068106]
[1753908954504,3.31,176.21,176.2,4.06068106]
[1753908955214,3.31,176.21,176.19,104.5]
[1753908955414,3.31,176.21,176.19,108.56068106]
[1753908955608,3.31,176.21,176.19,104.5]
[1753908955908,4.06068106,176.27,176.19,104.5]
[1753908955909,3.31,176.2,176.19,104.5]
[1753908957006,3.31,176.2,176.19,107.64]
[1753908960904,3.31,176.2,176.19,104.5]
[1753908962308,8.9868,176.2,176.19,104.5]
[1753908962718,8.7868,176.2,176.19,104.5]